[Event "POR-chT 1st Divison 2018"]
[Site "Maia"]
[Date "2018.07.20"]
[Round "7"]
[White "Lombaers, Peter"]
[Black "Kantans, Toms"]
[Result "0-1"]
[ECO "A37"]
[WhiteElo "2361"]
[BlackElo "2529"]
[Annotator "RC"]
[PlyCount "70"]
[EventDate "2018.07.16"]
[EventType "team-tourn"]
[EventCountry "POR"]
[SourceTitle "playchess.com"]
[Source "ChessBase"]
[SourceQuality "1"]
[TimeControl "5400+30"]

1. c4 {[%emt 0:00:00]} c5 {[%emt 0:00:00]} 2. g3 {[%emt 0:00:00]} Nc6 {[%emt 0:00:00]} 3. Bg2 {[%emt 0:00:00]} g6 {[%emt 0:00:00]} 4. Nc3 {[%emt 0:00:00]} Bg7 {[%emt 0:00:00]} 5. Nf3 {[%emt 0:00:00]} d6 {[%emt 0:00:22]} 6. O-O {[%emt 0:01:17]} e6 {[%emt 0:00:24]} 7. a3 {[%emt 0:01:40]} Nge7 {[%emt 0:00:07]} 8. Rb1 {[%emt 0:00:20]} O-O {[%emt 0:00:50]} 9. b4 {[%emt 0:00:36]} b6 {[%emt 0:00:48]} 10. e3 {[%emt 0:05:23]} Bb7 {[%emt 0:00:44]} 11. Qc2 {[%emt 0:00:47]} Rc8 {[%emt 0:01:15]} 12. d3 {[%emt 0:02:04]} Qd7 {[%emt 0:00:21]} 13. Qb3 {[%emt 0:09:23]} Rfd8 {[%emt 0:01:06]} 14. Bb2 {[%emt 0:01:19]} h6 {[%emt 0:18:16]} 15. Rfd1 {[%emt 0:05:41]} Nf5 {[%emt 0:04:17]} 16. Ne4 {[%emt 0:05:02]} e5 {[%emt 0:01:05]} 17. Nc3 {[%emt 0:03:05]} Nfe7 {[%emt 0:06:50]} 18. Nd5 {[%emt 0:09:32]} Nxd5 {[%emt 0:00:55]} 19. cxd5 {[%emt 0:00:06]} Ne7 {[%emt 0:00:12]} 20. e4 {[%emt 0:00:13]} Ba6 {[%emt 0:02:46]} 21. a4 {[%emt 0:15:10]} cxb4 {[%emt 0:00:15]} 22. Bf1 {[%emt 0:01:42]} f5 {[%emt 0:03:19]} 23. Bh3 {[%emt 0:04:47]} Qe8 {[%emt 0:03:04]} 24. Qxb4 {[%emt 0:01:32]} Rc5 {[%emt 0:02:06]} 25. d4 {[%emt 0:06:14]} Rc4 {[%emt 0:04:12]} 26. Qe1 {[%emt 0:00:33]} Rxa4 {[%emt 0:02:06]} 27. Ra1 {[%emt 0:06:21]} Bc8 {[%emt 0:07:43]} 28. exf5 {[%emt 0:06:22]} Rxa1 {[%emt 0:08:45]} 29. Rxa1 {[%emt 0:01:12]} Bxf5 {[%emt 0:00:22]} 30. Bxf5 {[%emt 0:01:44]} Nxf5 {[%emt 0:00:03]} 31. dxe5 {[%emt 0:03:41]} Qb5 {[%emt 0:01:15]} 32. Qd2 {[%emt 0:03:05]} dxe5 {[%emt 0:07:15]} 33. Rxa7 {[%emt 0:00:33]} Qxd5 {[%emt 0:02:09]} 34. Qxd5+ {[%emt 0:03:14]} Rxd5 {[%emt 0:00:05]} 35. Kg2 {[%emt 0:00:31]} e4 {[%emt 0:01:13]} 0-1

[Event "POR-chT 1st Divison 2018"]
[Site "Maia"]
[Date "2018.07.20"]
[Round "7"]
[White "Marchena Hurtado, Javier"]
[Black "Reis, Luis Sousa"]
[Result "1-0"]
[ECO "C04"]
[WhiteElo "2354"]
[BlackElo "2150"]
[Annotator "NA"]
[PlyCount "95"]
[EventDate "2018.07.16"]
[EventType "team-tourn"]
[EventCountry "POR"]
[SourceTitle "playchess.com"]
[Source "ChessBase"]
[SourceQuality "1"]
[TimeControl "5400+30"]

1. e4 {[%emt 0:00:31]} e6 {[%emt 0:00:17]} 2. d4 {[%emt 0:00:14]} d5 {[%emt 0:00:24]} 3. Nd2 {[%emt 0:00:09]} Nc6 {[%emt 0:01:29]} 4. Ngf3 {[%emt 0:00:20]} Nf6 {[%emt 0:01:06]} 5. e5 {[%emt 0:00:08]} Nd7 {[%emt 0:01:47]} 6. Bb5 {[%emt 0:00:06]} Be7 {[%emt 0:10:55]} 7. O-O {[%emt 0:01:34]} O-O {[%emt 0:01:43]} 8. c4 {[%emt 0:19:13]} dxc4 {[%emt 0:03:48]} 9. Nxc4 {[%emt 0:00:47]} Nb4 {[%emt 0:03:20]} 10. Ne3 {[%emt 0:04:35]} Nb6 {[%emt 0:01:22]} 11. a3 {[%emt 0:01:48]} N4d5 {[%emt 0:01:01]} 12. Bd3 {[%emt 0:02:12]} Bd7 {[%emt 0:12:51]} 13. Ng4 {[%emt 0:05:07]} a6 {[%emt 0:14:01]} 14. Qe2 {[%emt 0:02:20]} Bb5 {[%emt 0:04:31]} 15. Bxb5 {[%emt 0:00:52]} axb5 {[%emt 0:00:09]} 16. Qxb5 {[%emt 0:00:24]} Qe8 {[%emt 0:02:54]} 17. Qd3 {[%emt 0:02:44]} Qc6 {[%emt 0:05:07]} 18. Bg5 {[%emt 0:03:59]} Rfd8 {[%emt 0:08:27]} 19. Rac1 {[%emt 0:03:43]} Qd7 {[%emt 0:00:31]} 20. Rfd1 {[%emt 0:02:51]} Ra4 {[%emt 0:06:34]} 21. h4 {[%emt 0:07:10]} h6 {[%emt 0:08:27]} 22. Bxe7 {[%emt 0:02:02]} Nxe7 {[%emt 0:00:30]} 23. Ne3 {[%emt 0:01:10]} Nc6 {[%emt 0:01:18]} 24. Rc5 {[%emt 0:04:07]} Ne7 {[%emt 0:04:21]} 25. g3 {[%emt 0:03:10]} Ned5 {[%emt 0:01:36]} 26. Nxd5 {[%emt 0:01:06]} Nxd5 {[%emt 0:00:15]} 27. Kg2 {[%emt 0:00:20]} Ne7 {[%emt 0:03:08]} 28. Qc2 {[%emt 0:01:13]} Nd5 {[%emt 0:00:11]} 29. Rc1 {[%emt 0:01:07]} Rda8 {[%emt 0:01:11]} 30. Qb3 {[%emt 0:02:03]} c6 {[%emt 0:00:51]} 31. R5c4 {[%emt 0:03:11]} Rxc4 {[%emt 0:00:45]} 32. Rxc4 {[%emt 0:00:23]} Rd8 {[%emt 0:00:29]} 33. Qc2 {[%emt 0:05:10]} Ne7 {[%emt 0:00:13]} 34. h5 {[%emt 0:01:52]} Nf5 {[%emt 0:00:15]} 35. g4 {[%emt 0:01:03]} Ne7 {[%emt 0:00:12]} 36. Kg3 Nd5 {[%emt 0:00:13]} 37. Qb3 {[%emt 0:02:06]} Ra8 {[%emt 0:00:40]} 38. Ra4 {[%emt 0:01:53]} Rxa4 {[%emt 0:00:34]} 39. Qxa4 {[%emt 0:00:04]} Qc7 {[%emt 0:00:26]} 40. Qa8+ {[%emt 0:00:47]} Kh7 {[%emt 0:00:05]} 41. g5 {[%emt 0:07:00]} Ne7 {[%emt 0:01:01]} 42. Qe8 {[%emt 0:02:05]} Nf5+ {[%emt 0:00:24]} 43. Kg4 {[%emt 0:00:40]} g6 {[%emt 0:00:33]} 44. hxg6+ {[%emt 0:01:12]} fxg6 {[%emt 0:00:12]} 45. gxh6 {[%emt 0:01:42]} Nxh6+ {[%emt 0:01:25]} 46. Kf4 {[%emt 0:00:31]} Nf7 {[%emt 0:00:55]} 47. Qxe6 {[%emt 0:00:29]} Qb6 {[%emt 0:00:22]} 48. Qxf7+ {[%emt 0:00:08]} 1-0

[Event "POR-chT 1st Divison 2018"]
[Site "Maia"]
[Date "2018.07.20"]
[Round "7"]
[White "Andrade, Jose Manuel Vieira"]
[Black "Alshameary Puente, Ismael"]
[Result "0-1"]
[ECO "B21"]
[WhiteElo "2204"]
[BlackElo "2352"]
[Annotator "NA"]
[PlyCount "85"]
[EventDate "2018.07.16"]
[EventType "team-tourn"]
[EventCountry "POR"]
[SourceTitle "playchess.com"]
[Source "ChessBase"]
[SourceQuality "1"]
[TimeControl "5400+30"]

1. e4 {[%emt 0:00:00]} c5 {[%emt 0:00:00]} 2. d4 {[%emt 0:00:00]} cxd4 {[%emt 0:00:00]} 3. c3 {[%emt 0:00:00]} dxc3 {[%emt 0:02:08]} 4. Nxc3 {[%emt 0:00:00]} Nc6 {[%emt 0:00:02]} 5. Nf3 {[%emt 0:00:02]} e6 {[%emt 0:00:04]} 6. Bc4 {[%emt 0:00:06]} a6 {[%emt 0:00:04]} 7. O-O {[%emt 0:00:07]} b5 {[%emt 0:02:57]} 8. Bb3 {[%emt 0:00:22]} Na5 {[%emt 0:02:50]} 9. Bc2 {[%emt 0:01:25]} Ne7 {[%emt 0:03:33]} 10. Qe2 {[%emt 0:11:06]} Bb7 {[%emt 0:03:33]} 11. Rd1 {[%emt 0:02:53]} Ng6 {[%emt 0:01:39]} 12. Ng5 {[%emt 0:22:05]} Be7 {[%emt 0:11:49]} 13. Qh5 {[%emt 0:00:45]} Qc7 {[%emt 0:00:36]} 14. a3 {[%emt 0:07:14]} Nc4 {[%emt 0:00:30]} 15. Bb3 {[%emt 0:05:49]} Qe5 {[%emt 0:12:51]} 16. Bxc4 {[%emt 0:03:04]} bxc4 {[%emt 0:00:46]} 17. Be3 {[%emt 0:04:45]} Bxg5 {[%emt 0:14:15]} 18. Qxg5 {[%emt 0:00:05]} Qxg5 {[%emt 0:00:15]} 19. Bxg5 {[%emt 0:00:06]} Bc6 {[%emt 0:01:33]} 20. Rd4 {[%emt 0:01:32]} Ne5 {[%emt 0:03:17]} 21. Bf4 {[%emt 0:02:29]} Nd3 {[%emt 0:03:33]} 22. Bd6 {[%emt 0:01:55]} Nxb2 {[%emt 0:21:38]} 23. Rb1 {[%emt 0:09:03]} Nd3 {[%emt 0:01:39]} 24. Rxc4 {[%emt 0:07:19]} f6 {[%emt 0:00:57]} 25. f4 {[%emt 0:03:21]} Kf7 {[%emt 0:03:28]} 26. Rd4 {[%emt 0:01:17]} Nxf4 {[%emt 0:00:12]} 27. Bxf4 {[%emt 0:07:27]} e5 {[%emt 0:00:04]} 28. Bxe5 {[%emt 0:00:22]} fxe5 {[%emt 0:00:01]} 29. Rd6 {[%emt 0:00:47]} Rab8 {[%emt 0:00:51]} 30. Rbd1 {[%emt 0:00:21]} Rb3 {[%emt 0:00:29]} 31. Nd5 {[%emt 0:00:42]} Rxa3 {[%emt 0:01:53]} 32. Rf1+ {[%emt 0:03:53]} Ke8 {[%emt 0:00:31]} 33. Rb1 {[%emt 0:00:20]} Rf8 {[%emt 0:01:04]} 34. Nb4 {[%emt 0:03:04]} Bb5 {[%emt 0:01:21]} 35. Rd5 {[%emt 0:00:29]} Rb3 {[%emt 0:00:29]} 36. Rdd1 {[%emt 0:01:09]} Rxb1 {[%emt 0:00:39]} 37. Rxb1 {[%emt 0:00:04]} Rf4 {[%emt 0:01:03]} 38. Re1 {[%emt 0:00:13]} Bc6 {[%emt 0:00:19]} 39. Nxc6 {[%emt 0:00:35]} dxc6 {[%emt 0:00:04]} 40. Ra1 {[%emt 0:00:32]} Rxe4 {[%emt 0:01:08]} 41. Rxa6 {[%emt 0:00:07]} Rc4 {[%emt 0:01:13]} 42. Ra7 {[%emt 0:00:28]} Kf8 {[%emt 0:00:05]} 43. Kf2 {[%emt 0:00:14]} 0-1

[Event "POR-chT 1st Divison 2018"]
[Site "Maia"]
[Date "2018.07.20"]
[Round "7"]
[White "Cruz, Jorge Filipe Egas D"]
[Black "Padeiro, Jose"]
[Result "1/2-1/2"]
[ECO "B17"]
[WhiteElo "2159"]
[BlackElo "2284"]
[Annotator "NA"]
[PlyCount "60"]
[EventDate "2018.07.16"]
[EventType "team-tourn"]
[EventCountry "POR"]
[SourceTitle "playchess.com"]
[Source "ChessBase"]
[SourceQuality "1"]
[TimeControl "5400+30"]

1. e4 {[%emt 0:02:27]} c6 {[%emt 0:00:00]} 2. d4 {[%emt 0:00:08]} d5 {[%emt 0:00:00]} 3. Nc3 {[%emt 0:00:05]} dxe4 {[%emt 0:00:04]} 4. Nxe4 {[%emt 0:00:04]} Nd7 {[%emt 0:00:31]} 5. Ng5 {[%emt 0:00:57]} Ngf6 {[%emt 0:00:24]} 6. Bd3 {[%emt 0:01:00]} h6 {[%emt 0:00:17]} 7. Ne6 {[%emt 0:05:02]} Qb6 {[%emt 0:00:06]} 8. Nxf8 {[%emt 0:00:51]} Nxf8 {[%emt 0:00:03]} 9. c3 {[%emt 0:03:30]} Bg4 {[%emt 0:03:08]} 10. Qb3 {[%emt 0:05:35]} Bh5 {[%emt 0:02:58]} 11. Ne2 {[%emt 0:03:52]} Bg6 {[%emt 0:00:32]} 12. Nf4 {[%emt 0:03:03]} Bxd3 {[%emt 0:00:07]} 13. Nxd3 {[%emt 0:00:28]} N8d7 {[%emt 0:06:55]} 14. O-O {[%emt 0:02:01]} O-O {[%emt 0:01:31]} 15. Re1 {[%emt 0:03:33]} e6 {[%emt 0:00:50]} 16. Bf4 {[%emt 0:06:56]} Rfe8 {[%emt 0:04:46]} 17. Rad1 {[%emt 0:02:21]} Rac8 {[%emt 0:09:16]} 18. Qc2 {[%emt 0:11:53]} Qa5 {[%emt 0:01:18]} 19. b3 {[%emt 0:05:31]} Qf5 {[%emt 0:05:16]} 20. Re2 {[%emt 0:12:13]} c5 {[%emt 0:05:28]} 21. dxc5 {[%emt 0:01:18]} e5 {[%emt 0:00:33]} 22. Be3 {[%emt 0:08:04]} e4 {[%emt 0:00:58]} 23. Nb2 Ne5 {[%emt 0:06:11]} 24. h3 {[%emt 0:05:51]} Nf3+ {[%emt 0:08:24]} 25. Kh1 {[%emt 0:00:48]} Qe5 {[%emt 0:14:55]} 26. gxf3 {[%emt 0:02:26]} exf3 {[%emt 0:00:53]} 27. Ree1 {[%emt 0:01:09]} Qh5 {[%emt 0:00:34]} 28. Kh2 {[%emt 0:00:35]} Qe5+ {[%emt 0:16:46]} 29. Kh1 {[%emt 0:00:37]} Qh5 {[%emt 0:03:45]} 30. Kh2 {[%emt 0:00:09]} Qe5+ {[%emt 0:06:12]} 1/2-1/2

[Event "POR-chT 1st Divison 2018"]
[Site "Maia"]
[Date "2018.07.21"]
[Round "8"]
[White "Gargatagli, Hipolito Asis"]
[Black "Zelbel, Patrick"]
[Result "1/2-1/2"]
[ECO "B04"]
[WhiteElo "2538"]
[BlackElo "2418"]
[Annotator "RC"]
[PlyCount "24"]
[EventDate "2018.07.16"]
[EventType "team-tourn"]
[EventCountry "POR"]
[SourceTitle "playchess.com"]
[Source "ChessBase"]
[SourceQuality "1"]
[TimeControl "5400+30"]

1. e4 {[%emt 0:02:34]} Nf6 {[%emt 0:00:34]} 2. e5 {[%emt 0:00:20]} Nd5 {[%emt 0:00:08]} 3. d4 {[%emt 0:00:06]} d6 {[%emt 0:00:19]} 4. Nf3 {[%emt 0:00:06]} g6 {[%emt 0:00:25]} 5. Bc4 {[%emt 0:01:32]} Nb6 {[%emt 0:00:30]} 6. Bb3 {[%emt 0:00:09]} Bg7 {[%emt 0:00:31]} 7. O-O {[%emt 0:00:58]} O-O {[%emt 0:00:29]} 8. exd6 {[%emt 0:00:21]} cxd6 {[%emt 0:00:02]} 9. h3 {[%emt 0:00:06]} Nc6 {[%emt 0:00:40]} 10. d5 {[%emt 0:00:21]} Na5 {[%emt 0:01:13]} 11. Nc3 {[%emt 0:00:29]} Re8 {[%emt 0:09:54]} 12. Re1 {[%emt 0:25:58]} a6 {[%emt 0:06:34]} 1/2-1/2

[Event "POR-chT 1st Divison 2018"]
[Site "Maia"]
[Date "2018.07.21"]
[Round "8"]
[White "Padeiro, Jose"]
[Black "Romano, Luis Miguel Pereira"]
[Result "0-1"]
[ECO "A14"]
[WhiteElo "2284"]
[BlackElo "2083"]
[Annotator "NA"]
[PlyCount "128"]
[EventDate "2018.07.16"]
[EventType "team-tourn"]
[EventCountry "POR"]
[SourceTitle "playchess.com"]
[Source "ChessBase"]
[SourceQuality "1"]
[TimeControl "5400+30"]

1. Nf3 d5 2. c4 e6 3. g3 Nf6 4. Bg2 Be7 5. O-O O-O 6. d4 c6 7. Qc2 b6 8. Nbd2 Bb7 9. e4 Na6 10. e5 Nd7 11. a3 c5 12. dxc5 Naxc5 13. b4 Na6 14. cxd5 Bxd5 15. Bb2 Qc8 16. Qb1 Qb7 17. Re1 Rac8 18. Ne4 Rfd8 19. Bf1 Nab8 20. Nfg5 Nf8 21. Nh3 Ng6 22. Nf4 Nxf4 23. gxf4 a5 24. bxa5 bxa5 25. Ng3 Bc5 26. Bc1 Qa7 27. Be3 Bxe3 28. fxe3 Nd7 29. Qb2 Nc5 30. Rad1 Qe7 31. e4 Ba8 32. Rxd8+ Qxd8 33. Qf2 Nd3 34. Bxd3 Qxd3 35. Qe3 Qc4 36. Rd1 g6 37. f5 exf5 38. Nxf5 Qe6 39. Nh6+ Kg7 40. Rf1 Rc7 41. Qf3 Qb6+ 42. Rf2 Qb1+ 43. Rf1 Qxe4 44. Qxe4 Bxe4 45. Ng4 Rc2 46. Rf4 Bc6 47. e6 fxe6 48. Ne5 Bd5 49. Rf7+ Kg8 50. Ra7 Rg2+ 51. Kf1 Rxh2 52. Ng4 Rh4 53. Nf6+ Kh8 54. Ke2 Be4 55. Ke3 Bf5 56. Rxa5 Kg7 57. Ne8+ Kf7 58. Ra8 h5 59. a4 Rh3+ 60. Kf4 e5+ 61. Kg5 Rg3+ 62. Kh6 h4 63. Nd6+ Ke6 64. Nc4 h3 0-1

[Event "POR-chT 1st Divison 2018"]
[Site "Maia"]
[Date "2018.07.21"]
[Round "8"]
[White "Ribeiro, Fernando"]
[Black "Marchena Hurtado, Javier"]
[Result "0-1"]
[ECO "B30"]
[WhiteElo "2165"]
[BlackElo "2354"]
[Annotator "NA"]
[PlyCount "72"]
[EventDate "2018.07.16"]
[EventType "team-tourn"]
[EventCountry "POR"]
[SourceTitle "playchess.com"]
[Source "ChessBase"]
[SourceQuality "1"]
[TimeControl "5400+30"]

1. e4 {[%emt 0:02:51]} c5 {[%emt 0:00:21]} 2. Nf3 {[%emt 0:01:55]} Nc6 {[%emt 0:00:06]} 3. Bb5 {[%emt 0:01:48]} d6 {[%emt 0:00:05]} 4. d4 {[%emt 0:00:19]} cxd4 {[%emt 0:00:05]} 5. Qxd4 {[%emt 0:00:32]} Bd7 {[%emt 0:00:06]} 6. Bxc6 {[%emt 0:00:07]} Bxc6 {[%emt 0:00:03]} 7. Nc3 {[%emt 0:00:20]} Nf6 {[%emt 0:00:09]} 8. Bg5 {[%emt 0:00:19]} e6 {[%emt 0:00:04]} 9. O-O-O {[%emt 0:00:13]} Be7 {[%emt 0:00:03]} 10. Qd3 {[%emt 0:01:00]} Qa5 {[%emt 0:00:29]} 11. h4 {[%emt 0:03:51]} h6 {[%emt 0:01:02]} 12. Bd2 {[%emt 0:00:57]} Qa6 {[%emt 0:01:04]} 13. Qxa6 {[%emt 0:11:46]} bxa6 {[%emt 0:01:26]} 14. Rhe1 {[%emt 0:00:18]} Ng4 {[%emt 0:07:07]} 15. Re2 {[%emt 0:02:55]} O-O {[%emt 0:04:32]} 16. Bf4 {[%emt 0:09:10]} e5 {[%emt 0:15:04]} 17. Bg3 {[%emt 0:14:48]} f5 {[%emt 0:02:28]} 18. exf5 {[%emt 0:02:28]} Rxf5 {[%emt 0:02:05]} 19. Nd5 {[%emt 0:00:55]} Bf8 {[%emt 0:01:26]} 20. Nh2 {[%emt 0:14:13]} Nf6 {[%emt 0:18:37]} 21. Ne3 {[%emt 0:01:26]} Rh5 {[%emt 0:01:45]} 22. f3 {[%emt 0:00:24]} e4 {[%emt 0:05:14]} 23. fxe4 {[%emt 0:08:14]} Nxe4 {[%emt 0:03:02]} 24. Be1 {[%emt 0:00:09]} Re8 {[%emt 0:05:41]} 25. Nf3 {[%emt 0:01:30]} g6 {[%emt 0:06:01]} 26. c4 {[%emt 0:02:45]} Nc5 {[%emt 0:12:49]} 27. Nd4 {[%emt 0:06:19]} Bd7 {[%emt 0:00:56]} 28. Nd5 {[%emt 0:02:47]} Rxe2 {[%emt 0:00:06]} 29. Nxe2 {[%emt 0:00:18]} Rf5 {[%emt 0:09:06]} 30. Ng3 {[%emt 0:01:30]} Rf7 {[%emt 0:00:42]} 31. b4 {[%emt 0:01:31]} Na4 {[%emt 0:00:54]} 32. Ne4 {[%emt 0:00:39]} Bg7 {[%emt 0:03:16]} 33. Nxd6 {[%emt 0:00:19]} Rf8 {[%emt 0:00:20]} 34. Bg3 {[%emt 0:03:11]} Nb2 {[%emt 0:00:02]} 35. Rd2 {[%emt 0:01:01]} Rf1+ {[%emt 0:00:14]} 36. Kc2 {[%emt 0:00:05]} Ba4# {[%emt 0:00:09]} 0-1

[Event "POR-chT 1st Divison 2018"]
[Site "Maia"]
[Date "2018.07.21"]
[Round "8"]
[White "Dias, Ivo Rodrigues"]
[Black "Santos Latasa, Jaime"]
[Result "0-1"]
[ECO "C54"]
[WhiteElo "2138"]
[BlackElo "2576"]
[Annotator "RC"]
[PlyCount "88"]
[EventDate "2018.07.16"]
[EventType "team-tourn"]
[EventCountry "POR"]
[SourceTitle "playchess.com"]
[Source "ChessBase"]
[SourceQuality "1"]
[TimeControl "5400+30"]

1. e4 {[%emt 0:00:00]} e5 2. Nf3 {[%emt 0:00:06]} Nc6 {[%emt 0:00:35]} 3. Bc4 {[%emt 0:02:39]} Bc5 {[%emt 0:00:30]} 4. c3 {[%emt 0:01:21]} Nf6 {[%emt 0:00:04]} 5. d3 {[%emt 0:00:04]} a6 {[%emt 0:00:03]} 6. O-O {[%emt 0:00:23]} d6 {[%emt 0:00:07]} 7. h3 {[%emt 0:00:13]} Ba7 {[%emt 0:00:12]} 8. Re1 {[%emt 0:00:08]} h6 {[%emt 0:00:48]} 9. Bb3 {[%emt 0:00:33]} Bd7 {[%emt 0:00:24]} 10. Be3 {[%emt 0:09:39]} Bxe3 {[%emt 0:00:39]} 11. Rxe3 {[%emt 0:01:37]} Qe7 {[%emt 0:07:08]} 12. d4 {[%emt 0:02:19]} O-O {[%emt 0:01:00]} 13. Nbd2 {[%emt 0:03:01]} Rae8 {[%emt 0:00:26]} 14. Re1 {[%emt 0:11:32]} Qd8 {[%emt 0:02:26]} 15. Bc2 {[%emt 0:04:34]} Nh7 {[%emt 0:07:21]} 16. dxe5 {[%emt 0:02:27]} Nxe5 {[%emt 0:01:38]} 17. Nd4 {[%emt 0:02:12]} Ng6 {[%emt 0:02:46]} 18. Nf1 {[%emt 0:02:14]} Ng5 {[%emt 0:01:44]} 19. Ng3 {[%emt 0:01:22]} Nf4 {[%emt 0:00:47]} 20. Ndf5 {[%emt 0:10:02]} Nge6 {[%emt 0:05:23]} 21. Qg4 {[%emt 0:13:47]} Qg5 {[%emt 0:06:06]} 22. Rad1 {[%emt 0:01:45]} g6 {[%emt 0:01:28]} 23. Qxg5 {[%emt 0:01:17]} hxg5 {[%emt 0:01:24]} 24. Ne3 {[%emt 0:00:13]} Nc5 {[%emt 0:01:01]} 25. f3 {[%emt 0:01:50]} Be6 {[%emt 0:02:28]} 26. b4 {[%emt 0:07:17]} Nd7 {[%emt 0:00:19]} 27. Ba4 {[%emt 0:00:54]} b5 {[%emt 0:01:13]} 28. Bb3 {[%emt 0:00:44]} Ne5 {[%emt 0:00:05]} 29. Ng4 {[%emt 0:05:41]} Bxg4 {[%emt 0:03:23]} 30. hxg4 {[%emt 0:00:11]} a5 {[%emt 0:01:23]} 31. a3 {[%emt 0:01:11]} Ra8 {[%emt 0:01:18]} 32. Nf1 {[%emt 0:01:24]} axb4 {[%emt 0:01:27]} 33. axb4 {[%emt 0:00:02]} Ra3 {[%emt 0:00:24]} 34. Rb1 {[%emt 0:00:19]} c5 {[%emt 0:00:47]} 35. bxc5 {[%emt 0:00:35]} dxc5 {[%emt 0:00:16]} 36. Bd5 {[%emt 0:00:28]} Rb8 {[%emt 0:00:10]} 37. Re3 {[%emt 0:02:02]} Rxc3 {[%emt 0:00:51]} 38. Rxc3 {[%emt 0:00:53]} Ne2+ {[%emt 0:00:21]} 39. Kf2 {[%emt 0:01:24]} Nxc3 {[%emt 0:00:11]} 40. Rb3 {[%emt 0:00:16]} Nxd5 {[%emt 0:02:06]} 41. exd5 {[%emt 0:00:02]} c4 {[%emt 0:00:21]} 42. Rb1 {[%emt 0:00:19]} c3 {[%emt 0:01:33]} 43. Ke2 {[%emt 0:00:23]} b4 {[%emt 0:00:16]} 44. Ne3 {[%emt 0:00:20]} b3 {[%emt 0:00:14]} 0-1

[Event "POR-chT 1st Divison 2018"]
[Site "Maia"]
[Date "2018.07.21"]
[Round "8"]
[White "Guerreiro, Nuno"]
[Black "Nagy, Gabor"]
[Result "0-1"]
[ECO "A04"]
[WhiteElo "2050"]
[BlackElo "2474"]
[Annotator "ChessBase"]
[PlyCount "54"]
[EventDate "2018.07.16"]
[EventType "team-tourn"]
[EventCountry "POR"]
[SourceTitle "playchess.com"]
[Source "ChessBase"]
[SourceQuality "1"]
[TimeControl "5400+30"]

1. Nf3 {[%emt 0:00:00]} c5 {[%emt 0:00:53]} 2. g3 {[%emt 0:00:00]} Nc6 {[%emt 0:00:19]} 3. Bg2 {[%emt 0:00:00]} g6 {[%emt 0:00:08]} 4. O-O {[%emt 0:00:12]} Bg7 {[%emt 0:00:15]} 5. c4 {[%emt 0:04:02]} e5 {[%emt 0:01:19]} 6. Nc3 {[%emt 0:01:44]} Nge7 {[%emt 0:01:30]} 7. Rb1 {[%emt 0:01:13]} O-O {[%emt 0:00:29]} 8. Ne1 {[%emt 0:01:02]} a6 {[%emt 0:02:49]} 9. a3 {[%emt 0:00:58]} Rb8 {[%emt 0:02:23]} 10. b4 {[%emt 0:01:52]} cxb4 {[%emt 0:00:17]} 11. axb4 {[%emt 0:00:05]} b5 {[%emt 0:00:12]} 12. cxb5 {[%emt 0:07:20]} axb5 {[%emt 0:00:17]} 13. Qb3 {[%emt 0:01:46]} d6 {[%emt 0:02:23]} 14. Nc2 {[%emt 0:06:52]} Be6 {[%emt 0:02:03]} 15. Nd5 {[%emt 0:00:36]} Kh8 {[%emt 0:00:22]} 16. e4 {[%emt 0:11:36]} f5 {[%emt 0:00:57]} 17. d3 {[%emt 0:00:34]} f4 {[%emt 0:01:33]} 18. Rd1 {[%emt 0:02:53]} Qe8 {[%emt 0:07:11]} 19. gxf4 {[%emt 0:10:06]} exf4 {[%emt 0:00:52]} 20. d4 {[%emt 0:00:02]} Bg8 {[%emt 0:04:38]} 21. Ra1 {[%emt 0:09:42]} g5 {[%emt 0:00:29]} 22. Qh3 {[%emt 0:02:24]} Rc8 {[%emt 0:03:19]} 23. Qd3 {[%emt 0:03:23]} Qh5 {[%emt 0:05:18]} 24. Ra3 {[%emt 0:06:20]} Nxd5 {[%emt 0:00:32]} 25. exd5 {[%emt 0:00:08]} Ne7 {[%emt 0:00:06]} 26. Rd2 {[%emt 0:09:18]} Nxd5 {[%emt 0:00:40]} 27. Qxb5 {[%emt 0:01:55]} Rxc2 {[%emt 0:00:08]} 0-1

[Event "POR-chT 1st Divison 2018"]
[Site "Maia"]
[Date "2018.07.21"]
[Round "8"]
[White "Cavaleiro, Daniel Filipe Costa"]
[Black "Eggert, Alberto"]
[Result "1-0"]
[ECO "E18"]
[WhiteElo "1987"]
[BlackElo "2142"]
[Annotator "NA"]
[PlyCount "77"]
[EventDate "2018.07.16"]
[EventType "team-tourn"]
[EventCountry "POR"]
[SourceTitle "playchess.com"]
[Source "ChessBase"]
[SourceQuality "1"]
[TimeControl "5400+30"]

1. d4 {[%emt 0:04:29]} Nf6 {[%emt 0:00:13]} 2. c4 {[%emt 0:00:07]} e6 {[%emt 0:00:24]} 3. Nf3 {[%emt 0:00:18]} b6 {[%emt 0:00:53]} 4. g3 {[%emt 0:01:31]} Bb7 {[%emt 0:00:20]} 5. Bg2 {[%emt 0:00:06]} Be7 {[%emt 0:00:23]} 6. O-O {[%emt 0:00:07]} O-O {[%emt 0:00:18]} 7. Nc3 {[%emt 0:00:18]} d5 {[%emt 0:07:45]} 8. b3 {[%emt 0:00:44]} Ne4 {[%emt 0:15:34]} 9. Bb2 {[%emt 0:00:37]} f5 {[%emt 0:07:16]} 10. Nd2 {[%emt 0:04:54]} Nc6 {[%emt 0:11:19]} 11. Ndxe4 {[%emt 0:13:44]} dxe4 {[%emt 0:05:50]} 12. d5 {[%emt 0:01:09]} exd5 {[%emt 0:01:53]} 13. Qxd5+ {[%emt 0:01:23]} Rf7 {[%emt 0:09:30]} 14. Qxd8+ {[%emt 0:02:40]} Rxd8 {[%emt 0:00:31]} 15. Nd5 {[%emt 0:00:40]} Bc5 {[%emt 0:03:46]} 16. Rad1 {[%emt 0:01:22]} Rd6 {[%emt 0:04:59]} 17. Bc3 {[%emt 0:02:23]} a5 {[%emt 0:00:35]} 18. Bh3 {[%emt 0:08:22]} g5 {[%emt 0:02:09]} 19. Rd2 {[%emt 0:04:06]} f4 {[%emt 0:11:13]} 20. e3 {[%emt 0:02:12]} h5 {[%emt 0:06:39]} 21. gxf4 {[%emt 0:05:52]} gxf4 {[%emt 0:00:07]} 22. Nxf4 {[%emt 0:00:13]} Rxf4 {[%emt 0:01:29]} 23. Rxd6 {[%emt 0:01:04]} cxd6 {[%emt 0:00:26]} 24. exf4 {[%emt 0:00:07]} e3 {[%emt 0:02:40]} 25. Be6+ {[%emt 0:03:45]} Kf8 {[%emt 0:00:29]} 26. fxe3 {[%emt 0:00:53]} Bxe3+ {[%emt 0:00:28]} 27. Kg2 {[%emt 0:00:15]} Nb4+ {[%emt 0:01:01]} 28. Kg3 {[%emt 0:02:20]} Nxa2 {[%emt 0:00:44]} 29. Bf6 {[%emt 0:00:28]} Nc1 {[%emt 0:01:11]} 30. Bd5 {[%emt 0:12:18]} Bc8 {[%emt 0:02:16]} 31. Kf3 {[%emt 0:04:39]} Bh3 {[%emt 0:01:18]} 32. Rh1 {[%emt 0:04:59]} Bd2 {[%emt 0:00:32]} 33. Rg1 {[%emt 0:01:02]} Bg4+ {[%emt 0:00:16]} 34. Ke4 {[%emt 0:00:46]} Nxb3 {[%emt 0:01:39]} 35. h3 {[%emt 0:04:01]} Nc5+ {[%emt 0:01:00]} 36. Kd4 {[%emt 0:00:07]} Ne6+ {[%emt 0:00:44]} 37. Kd3 {[%emt 0:00:53]} Nxf4+ {[%emt 0:00:15]} 38. Kxd2 {[%emt 0:00:32]} Nxh3 {[%emt 0:00:03]} 39. Rb1 {[%emt 0:01:19]} 1-0